Cogmind - Beta 17.1 @@@ ROGUE MODE // 2026.09.12 @ 17:10:54 Player: fai Result: Destroyed by G-34 Mercenary with Small Laser Performance ------------- Evolutions (0) 0 Regions Visited (1) 200 Robots Destroyed (13) 65 Value Destroyed (322) 322 Prototype IDs (0) 0 Alien Tech Used (0) 0 Bonus (0) 0 TOTAL SCORE: 587 Bonus ------- None Cogmind --------- Core Integrity 0/250 Matter 214/300 Energy 164/250 System Corruption 1% Temperature Warning (337) Movement Rolling (130) Ox2 Location -10/Materials Parts ------- > --- POWER (1) -------- Ion Engine > --- PROPULSION (2) --- Compact Wheel > --- UTILITY (2) ------ High-capacity Storage Unit > --- WEAPON (2) ------- Light Assault Rifle > --- INVENTORY (20) --- Light Ion Engine Compact Wheel Particle Gun Datajack Peak State ------------ > --- POWER ------------ Light Nuclear Core > --- PROPULSION ------- Wheel Compact Wheel > --- UTILITY ---------- High-capacity Storage Unit Seismic Detector > --- WEAPON ----------- Particle Gun Assault Rifle > --- INVENTORY -------- Ion Engine Light Ion Engine Compact Wheel Compact Wheel Compact Wheel EM Pulse Gun Light Assault Rifle [Rating: 10] Favorites ----------- Power Light Nuclear Core Engine Light Ion Engine Power Core Light Nuclear Core Propulsion Compact Wheel Wheel Compact Wheel Utility Seismic Detector Device Seismic Detector Storage High-capacity Storage Unit Weapon Assault Rifle Energy Gun Particle Gun Ballistic Gun Assault Rifle Build | -11 -10 ------- Run | Yrd Mat Slots Evolved . | . . Power . | . . Propulsion . | . . Utility . | . . Weapon . | . . Parts Attached 17 | 10 7 Power 3 | 1 2 Engine 2 | 1 1 Core 1 | . 1 Reactor . | . . Propulsion 7 | 4 3 Treads . | . . Leg . | . . Wheel 7 | 4 3 Hover . | . . Flight . | . . Utility 3 | 2 1 Device 1 | 1 . Storage 2 | 1 1 Processor . | . . Hackware . | . . Protection . | . . Artifact . | . . Weapon 4 | 3 1 Energy Gun 2 | 1 1 Energy Cannon . | . . Ballistic Gun 2 | 2 . Ballistic Cannon . | . . Launcher . | . . Special Weapon . | . . Impact Weapon . | . . Slashing Weapon . | . . Piercing Weapon . | . . Special Melee Weapon . | . . Unidentified Prototypes . | . . Parts Lost 9 | . 9 Power 1 | . 1 Propulsion 5 | . 5 Utility 1 | . 1 Weapon 2 | . 2 Highest Loss Streak 6 | . 6 To Critical Strikes . | . . Average Backups 5 | 1 6 Power 1 | . 1 Propulsion 3 | . 3 Utility . | . . Weapon 1 | . 1 Tool/Special . | . . Unused Backups 3 | . 3 Power 1 | . 1 Propulsion 1 | . 1 Utility . | . . Weapon . | . . Tool/Special 1 | . 1 Average Slot Usage (%) 98 | . 98 Engine 6 | . 6 Core 7 | . 7 Wheel 26 | . 26 Device 13 | . 13 Storage 14 | . 14 Energy Gun 7 | . 7 Ballistic Gun 20 | . 20 Peak Build Rating 10 | 7 10 Average Rating 8 | 5 8 On Entrance 3 | . 7 Avg Prop Armor Cover (%) . | . . Naked Turns . | . . Heaviest Build 51 | 12 51 Greatest Support 32 | 32 26 Greatest Overweight (x) 3 | . 3 Average Overweight (x) . | . . Largest Inventory Capacity 20 | 8 20 Average Capacity 15 | 7 16 Most Carried 8 | 5 8 Average Carried 5 | 1 6 Final Capacity 20 | 8 20 Final Carried 5 | 5 4 Class Distribution -------------------- 58% | Scavenger-Mutant 41% | Mutant Dominant Class ---------------- Scavenger-Mutant | -10/Materials Resources | -11 -10 ----------- Run | Yrd Mat Matter Collected 505 | 316 189 Remotely . | . . Salvage Created 582 | 137 445 Parts 26 | 8 18 Haulers Intercepted . | . . Recyclers Shooed . | . . Parts Field Recycled . | . . Retrieved Matter . | . . Parts Self-Destructed . | . . Prevented . | . . Parts Restored . | . . Kills | -11 -10 ------- Run | Yrd Mat Combat Hostiles Destroyed 7 | . 7 Guns 7 | . 7 Classes Destroyed 5 | 2 3 Tunneler 2 | 2 . Recycler 2 | 1 1 Operator 1 | . 1 Watcher 1 | . 1 Grunt 7 | . 7 Best Kill Streak 3 | 3 2 Combat Bots Only 2 | . 2 Max Kills in Single Turn 1 | 1 1 Gunslinging . | . . Exploded . | . . Melee . | . . Uniques/NPCs Destroyed . | . . Combat | -11 -10 -------- Run | Yrd Mat Hostile Shots Fired 78 | . 78 Missed 16 | . 16 Hits 62 | . 62 Projectile 62 | . 62 Critical Strikes 3 | . 3 Damage Taken 875 | . 875 Core 254 | . 254 Absorbed by Shields . | . . Core Remaining (%) 100 | 100 . Volleys Fired 50 | 4 46 Largest 2 | 2 2 Hottest 85 | 40 85 Shots Fired 97 | 8 89 Gun 97 | 8 89 Cannon . | . . Launcher . | . . Special . | . . Kinetic 77 | 8 69 Thermal 17 | . 17 Explosive . | . . Electromagnetic 3 | . 3 Robot Hit Streak 14 | 6 14 Robot Miss Streak 2 | 1 2 Penetration Max . | . . Secondary Targets 2 | . 2 Max Gunslinging Chain 1 | . 1 Shots Hit Robots 67 | 6 61 Core Hits 27 | 4 23 Critical Kills . | . . Critical Parts Destroyed . | . . Critical Strikes . | . . Melee Attacks . | . . Impact . | . . Slashing . | . . Piercing . | . . Sneak Attacks . | . . Combat Hostiles . | . . Follow-up Attacks . | . . Damage Inflicted 750 | 68 682 Guns 750 | 68 682 Cannons . | . . Explosions . | . . Melee . | . . Ramming . | . . Kinetic 560 | 68 492 Thermal 152 | . 152 Explosive . | . . Electromagnetic 38 | . 38 Impact . | . . Slashing . | . . Piercing . | . . Highest Corruption 1 | . 1 Average Corruption 1 | . 1 Corruption Purged . | . . Corruption Blocked . | . . Effects 3 | . 3 Message Errors 1 | . 1 Heat Flow Errors 2 | . 2 Overload Shots . | . . Overflow Damage . | . . Projectiles . | . . Explosions . | . . Melee . | . . Knockbacks . | . . Impact . | . . Kinetic . | . . Secondary . | . . Self-Inflicted Damage . | . . Shots . | . . Rammed . | . . Targets Rammed . | . . Kicked . | . . Crushed . | . . Highest Temperature 370 | . 370 Average Temperature 99 | . 99 Received Heat Transfer 513 | . 513 Effects 1 | . 1 Matter Decay 1 | . 1 Siege Activations . | . . Martial Activations . | . . Shielding Activations . | . . Robots Disrupted . | . . Combat Hostiles . | . . Robots Corrupted . | . . Combat Hostiles . | . . Parts Fried . | . . Impact Corruptions . | . . Robots Melted . | . . Combat Hostiles . | . . Parts Melted 2 | . 2 Heat Transferred 370 | . 370 Parts Sabotaged . | . . Parts Stolen . | . . Parts Stripped . | . . Power Chain Reactions . | . . Alert | -11 -10 ------- Run | Yrd Mat Maximum Alert Level . | . . Low Security (%) 100 | 100 100 Level 1 . | . . Level 2 . | . . Level 3 . | . . Level 4 . | . . Level 5 . | . . High Security . | . . Max Security . | . . Peak Influence 45 | 10 45 Initial . | . . Average 7 | 1 8 Influence Increases 228 | 15 213 Destroy 0b10 Robot/C 140 | . 140 Destroy 0b10 Robot/NC 30 | 15 15 Destroy Leader 32 | . 32 Successful Hack 11 | . 11 Lose Combat Pursuer 15 | . 15 Influence Decreases 228 | 15 213 Time Decay 188 | 15 173 Lost Part 40 | . 40 Squads Dispatched 2 | . 2 Investigation 1 | . 1 Extermination . | . . Reinforcement 1 | . 1 Assault . | . . Garrison . | . . Intercept . | . . Searches Triggered . | . . Construction Impeded . | . . Haulers Reinforced . | . . Active Scanning Responses . | . . Cargo Convoy Interrupts . | . . Stealth | -11 -10 --------- Run | Yrd Mat Distress Signals 1 | . 1 Communications Jammed . | . . Distress Signals . | . . Times Spotted 20 | . 20 Peak Tracking Total 3 | . 3 Tactical Retreats 1 | . 1 Traps | -11 -10 ------- Run | Yrd Mat Traps Triggered 4 | . 4 Indirectly . | . . Trap Hack Attempts . | . . Triggered . | . . Disarmed . | . . Reprogrammed . | . . Reused . | . . Traps Extracted . | . . Installed . | . . Triggered . | . . Machines | -11 -10 ---------- Run | Yrd Mat Machines Disabled . | . . Max in Single Turn . | . . Machines Repaired . | . . Machines Dismantled . | . . Machines Sabotaged . | . . Overloaded Fab Kills . | . . Hacking | -11 -10 --------- Run | Yrd Mat Machines Accessed 5 | . 5 Terminals 5 | . 5 Fabricators . | . . Repair Stations . | . . Recycling Units . | . . Scanalyzers . | . . Garrison Access . | . . Total Hacks 11 | . 11 Successful 4 | . 4 Failed 7 | . 7 Catastrophic 6 | . 6 Database Lockouts . | . . Manual 11 | . 11 Terminals 11 | . 11 Fabricators . | . . Repair Stations . | . . Recycling Units . | . . Scanalyzers . | . . Garrison Access . | . . Terminal Hacks 1 | . 1 Branch Access Points 1 | . 1 Fabricator Hacks . | . . Repair Station Hacks . | . . Recycling Unit Hacks . | . . Scanalyzer . | . . Garrison Access Hacks . | . . Unauthorized Hacks 3 | . 3 Terminals 3 | . 3 Botnet 3 | . 3 Fabricators . | . . Repair Stations . | . . Recycling Units . | . . Scanalyzers . | . . Garrison Access . | . . Data Cores Recovered 1 | . 1 Used . | . . Hacking Detections 4 | . 4 Full Trace Events . | . . Feedback Events . | . . Feedback Blocked . | . . Robot Schematics Acquired . | . . Robots Built . | . . Authchips . | . . Time . | . . Total Robot Build Rating . | . . Part Schematics Acquired . | . . Parts Built . | . . Authchips . | . . Time . | . . Total Part Build Rating . | . . Part Studies Acquired . | . . Parts Repaired . | . . Time . | . . Parts Recycled . | . . Recycled Matter . | . . Retrieved Matter . | . . Retrieved Components . | . . Parts Scanalyzed . | . . Part Schematics Acquired . | . . Parts Damaged . | . . Bothacking | -11 -10 ------------ Run | Yrd Mat Used RIF Installer . | . . Robots Hacked . | . . Non-combat . | . . Combat . | . . Robot Hacks Applied . | . . Relay Couplers Released . | . . Fabnet Peak Effective % . | . . Robots Rewired . | . . Allies Hacked . | . . Hacks Repelled . | . . Allies | -11 -10 -------- Run | Yrd Mat Total Allies . | . . Largest Group . | . . Highest-Rated Group . | . . Highest-Rated Ally . | . . Total Orders . | . . Ally Attacks . | . . Total Damage . | . . Kills . | . . Allies Corrupted . | . . Allies Melted . | . . Intel | -11 -10 ------- Run | Yrd Mat Active Infowar (turns) 752 | 12 740 Seismic 752 | 12 740 Robot Analysis Total . | . . Derelict Logs Recovered . | . . Drone Launches . | . . Drone Recoveries . | . . Exploration | -11 -10 ------------- Run | Yrd Mat Turns Passed 857 | 95 762 Spaces Moved 652 | 69 583 Core 2 | 2 . Treads . | . . Legs . | . . Wheels 650 | 67 583 Hover . | . . Flight . | . . Fastest Speed 50 | 50 80 Average Speed 98 | 95 99 Slowest Speed 145 | 100 145 Overloaded Moves . | . . Propulsion Burnouts . | . . Robots Hopped . | . . Potential Cave-ins . | . . Cave-ins Triggered . | . . Exploration Rate (%) 40 | 5 76 Regions Visited 1 Branch Regions . Pre-discovered Areas . | . . Known Exits Taken . | . . Unknown Exits Taken 1 | 1 . Scrap Searched . | . . Spaces Dug . | . . Terrain Destroyed . | . . Melee . | . . Projectile . | . . AOE . | . . Terrain Rammed . | . . Walls Destroyed . | . . Machines Disabled . | . . Actions | -11 -10 --------- Run | Yrd Mat Total 767 | 85 682 Wait 33 | . 33 Move 651 | 68 583 Hop . | . . Pick Up 7 | 3 4 Fast Attach 8 | 7 1 Attach 6 | . 6 Detach . | . . Swap 9 | 3 6 Drop 3 | . 3 Fire 50 | 4 46 Melee . | . . Ram . | . . Kick . | . . Crush . | . . Escape Stasis . | . . Rewire . | . . Trap . | . . Miscellaneous . | . . Route ------- -11/Scrapyard -10/Materials (discovered 4 exits: [*Mat x2] / *Min x2) History --------- Turn | Location | Event 8 | -11/Scrapyard | Discovered new exit (range 15) 96 | -11/Scrapyard | Entered Materials 190 | -10/Materials | Discovered new exit (range 7) 265 | -10/Materials | Discovered new exit (range 16) 661 | -10/Materials | Core integrity fell below 50% 695 | -10/Materials | Discovered new exit (range 16) 732 | -10/Materials | Build established: Scavenger-Mutant 795 | -10/Materials | Identified exit to Mines 836 | -10/Materials | Core integrity fell below 20% 858 | -10/Materials | Destroyed by G-34 Mercenary with Small Laser Last Messages --------------- 00839_ Com. Wheel destroyed. 00839_ R-06 Scavenger collects Tractor Beam. 00841_ R-06 Scavenger collects Lgt. Ion Engine. 00841_ Wheel destroyed. 00842_ T-07 Excavator is excavating. 00842_ R-06 Scavenger collects Heat Sink. 00843_ U-05 Engineer lays Concrete. 00844_ R-06 Scavenger collects Com. Wheel. 00844_ U-05 Engineer lays Concrete. 00845_ R-06 Scavenger collects Lgt. Ion Engine. 00847_ Com. Wheel destroyed. 00847_ Critical hit (Burn: +37). 00848_ R-06 Scavenger collects Aluminum Leg. 00849_ Overheating: Matter decay (-52). 00849_ R-06 Scavenger collects Sml. Storage Unit. 00849_ U-05 Engineer lays Concrete. 00851_ G-47 Trooper IFF system glitched. 00851_ U-05 Engineer destroyed. 00853_ EM Pulse Gun destroyed. Map ----- +----------------------------------------------------+ | ####+####################+######## """ #??????? | | # % #???# """ #??????? | | # < #???# """ #??????? | | # #???# """ #?????## | | ####+#### #####+##### #???# #####?# | | ?# ## ## # #???# + #?# | | ?# ##! !## # #???#####+###### #?# | | ?# ###!!!!### # ####### #??????# | | ?# #?######?# # #??????# | | ?# #????????# + #??????# | | ?# #????????# # #??????# | | ?# #????????# ### ##"Y"## #??????# | | ?# #????????# #?# ##"""#### ########## | | ?# #????????# #?# ######??# ## # | | ?# #????????############/#########+## + | | ?# #??????????????????# # # ! # | | ?# #??????????????????# # """ #+####### | | ?#######??????????????????# # """ # #????## | | ??????????????????????????# "T" # """ !# ###### | | ??????????????????????????# """ # # | | ??????????????????????????# # """ + ! | | ???????????????????###########+#+# """ # | | ??????????????# ???# % # """ # #### | | ??????????????# # a + # ###### | | ???????????????# = gr # # ## | | ?????????????????###%! g @% # !! # ## """ | | ???????????????????#* #### # !! # ## """ | | ??????????????????# "??# # !! ]# ## """ | | ??????????????????# ??# ######## ## | | ??????????????????# |?# #?????# ###+# | | ??????????????????# > "?# #?????# | | ??????????????????# |"# #?????# | | ??????????????????# "# #?????# | | ??????????????????# """# #?????# ##### | | ??????????????????## #### #?????# ###???? | | ???????????????????# ??? #?????# #?????? | | ???????????????????/ ??? #?????# #?????? | | ???????????????????# ??? #?????# #?????? | | ???????????????????# ??? ???????# #?????? | | ???????????????????##+#????????????????# #?????? | | ???????????????????????????????????????# #?????? | | ???????????????????????????????????????# #?????? | | ????????#############??????????????????# #?????? | | ????????# #??????????????????# #?????? | | ????????# "" """ [ #??????????????????# ####### | | ######### "Y """ #??????????????????# # | | # ## "" """ #??????????????????# # | | # ## #??????????????????# # | | " ## #??????????????????# + """" | | T " ## #??????????????????# # """" | +----------------------------------------------------+ Best States ------------- Heat Dissipation 25 Energy Generation 14 Energy Capacity 250 Matter Stores 300 Matter Capacity 300 Sight Range 16 Terrain Scan Density 10 Evasion (%) 44 Item Schematics ----------------- None Robot Schematics ------------------ None Fabricated ------------ Nothing Repaired ---------- Nothing Studied --------- None Alien Tech Used ----------------- None Achievements -------------- None Challenges ------------ None Game ------ Seed LightPointyMask Manual? 0 Play Time 00:09:18 Cumulative 145.8 hours Start 2026.09.12 @ 17:00:18 End 2026.09.12 @ 17:10:54 Sessions 1 Manual Loads 0 Difficulty Rogue Special Mode None Game No. 68 Rogue 68 Adventurer 0 Explorer 0 Win Type - Total 2 Types 2/0/0/0/0/0/0/0/0/0 Lore% 18 Gallery% 50 Achievement% 26 Wizard Run 0 Options --------- Layout 1 ASCII 0 Keyboard 0 Movement Arrows Keybinds 0 Fullscreen 1 Font 24/Smallcaps Map View 50x35 Zoom Use 0% Tactical HUD 1 Map Filters NONE Filters NONE Steam 1 RUN: 0633e8df-0267-45a0-942f-6c4d3ab3660e